bitfinex-derivatives/quotes_BTCF0:USTF0_20251118
["timestamp","ask_amount","ask_price","bid_price","bid_amount"]
[1763456942796,0.04603,91071.0,91070.0,0.04567803]
[1763456944495,0.04603,91071.0,91070.0,0.05868803]
[1763456944691,0.04503,91071.0,91070.0,0.05868803]
[1763456944886,0.04603,91071.0,91070.0,0.05868803]
[1763456945085,0.04503,91062.0,91061.0,0.00016471]
[1763456945284,0.04503,91062.0,91061.0,0.04364471]
[1763456947992,0.04603,91062.0,91061.0,0.04364471]
[1763456949495,0.04603,91062.0,91061.0,0.00016471]
[1763456949992,0.04603,91062.0,91061.0,0.02235471]
[1763456950391,0.04603,91062.0,91061.0,0.00016471]
[1763456952615,0.04503,91055.0,91054.0,0.03871]
[1763456952792,0.04503,91055.0,91054.0,0.02785156]
[1763456952991,0.04503,91047.0,91040.0,0.03262]
[1763456954205,0.04503,91047.0,91027.0,0.0001342]
[1763456954206,0.02284,91028.0,91027.0,0.0001342]
[1763456954395,0.04503,91022.0,91021.0,0.02219]
[1763456954900,0.04503,91021.0,91020.0,0.00219803]
[1763456955101,0.04503,91009.0,91008.0,0.05649]
[1763456955298,0.04503,91007.0,91000.0,0.01301]
[1763456955599,0.04503,91007.0,91000.0,0.00219803]
[1763456955600,0.04403,91007.0,91000.0,0.00219803]
[1763456955996,0.04403,91007.0,91000.0,0.01301]
[1763456956801,0.04403,91007.0,91006.0,0.02246471]
[1763456957101,7.71e-05,91009.0,91008.0,0.05649]
[1763456958099,0.0442171,91009.0,91008.0,0.05649]
[1763456958298,0.0452171,91009.0,91008.0,0.05649]
[1763456958898,0.0442171,91009.0,91008.0,0.05649]
[1763456959105,0.0452171,91009.0,91008.0,0.05649]
[1763456959806,0.0010771,91009.0,91008.0,0.05649]
[1763456959991,0.00016481,91018.0,91017.0,0.0569]
[1763456960196,0.01265,91044.0,91020.0,0.00219803]
[1763456960397,0.04354267,91030.0,91029.0,0.0433]
[1763456961100,0.04359977,91030.0,91029.0,0.0433]
[1763456961605,0.00078977,91030.0,91029.0,0.0433]
[1763456962090,0.04659977,91030.0,91029.0,0.0433]
[1763456964597,0.00378977,91030.0,91029.0,0.0433]
[1763456964804,4.9527509,91240.0,91026.0,0.0136]
[1763456964805,0.04281,91059.0,91058.0,0.0433]
[1763456965404,0.04281,91041.0,91040.0,0.021]
[1763456965603,0.00686,91071.0,91040.0,0.07795322]
[1763456965904,0.00073267,91060.0,91059.0,0.0433]
[1763456966904,0.02201267,91060.0,91059.0,0.0433]
[1763456967095,0.04354267,91060.0,91059.0,0.0433]
[1763456967905,0.04454267,91060.0,91059.0,0.0433]
[1763456968800,0.04375,91051.0,91050.0,0.05793]
[1763456969004,0.04475,91060.0,91059.0,0.04433]
[1763456969203,0.04548267,91060.0,91059.0,0.04433]
[1763456970409,0.04448267,91060.0,91059.0,0.04433]
[1763456971106,0.00173267,91060.0,91059.0,0.04433]
[1763456971507,0.001,91060.0,91059.0,0.04433]
[1763456971708,0.00016471,91065.0,91064.0,0.04433]
[1763456972413,0.00027447,91086.0,91085.0,0.04433]
[1763456972414,0.04402447,91086.0,91085.0,0.04433]
[1763456974112,0.04502447,91086.0,91085.0,0.04433]
[1763456974598,0.04502447,91086.0,91080.0,0.01486803]
[1763456974599,0.04375,91081.0,91080.0,0.00219803]
[1763456975205,0.04375,91081.0,91080.0,0.02383803]
[1763456975409,0.04375,91081.0,91080.0,0.05919803]
[1763456977805,0.04375,91081.0,91080.0,0.00219803]
[1763456978303,0.04375,91077.0,91076.0,0.00016471]
[1763456980512,0.04375,91077.0,91076.0,0.04449471]
[1763456983919,0.04448267,91080.0,91079.0,0.04433]
[1763456985012,0.00073267,91080.0,91079.0,0.04433]
[1763456985218,0.02330267,91080.0,91079.0,0.04433]
[1763456985420,0.04448267,91080.0,91079.0,0.04433]
[1763456988018,0.00073267,91080.0,91079.0,0.04433]
[1763456988419,0.02330267,91080.0,91079.0,0.04433]
[1763456988828,0.02330267,91080.0,91079.0,0.03333]
[1763456992618,0.00073267,91080.0,91079.0,0.03333]
[1763456994927,0.02330267,91080.0,91079.0,0.03333]
[1763456995128,0.00073267,91080.0,91079.0,0.03333]
[1763456999025,0.00073267,91080.0,91079.0,0.04505]
[1763457000226,0.00027447,91086.0,91079.0,0.04505]
[1763457000434,0.00027447,91086.0,91085.0,0.04457]
[1763457001035,0.02314447,91086.0,91085.0,0.04457]
[1763457001734,0.04401,91081.0,91080.0,0.00219803]
[1763457001923,0.04401,91081.0,91080.0,0.04676803]
[1763457002936,0.04428447,91086.0,91085.0,0.04457]
[1763457006435,0.04428447,91086.0,91080.0,0.00219803]
[1763457006436,0.04401,91081.0,91080.0,0.00219803]
[1763457007626,0.04401,91081.0,91080.0,0.02491803]
[1763457007830,0.04401,91081.0,91080.0,0.04676803]
[1763457012329,0.00027447,91086.0,91085.0,0.04457]
[1763457012733,0.04428447,91086.0,91085.0,0.04457]
[1763457013825,0.04401,91081.0,91080.0,0.04676803]
[1763457016130,0.08356026,91081.0,91080.0,0.04676803]
[1763457017335,0.04401,91081.0,91080.0,0.04676803]
[1763457018939,0.04401,91081.0,91080.0,0.03576803]
[1763457021530,0.04401,91081.0,91080.0,0.04848803]
[1763457028956,0.04401,91081.0,91080.0,0.03748803]
[1763457029648,0.08074543,91084.0,91083.0,0.04423]
[1763457029856,0.10234543,91084.0,91083.0,0.04423]
[1763457033444,0.04302,91084.0,91083.0,0.04423]
[1763457034754,0.10236397,91084.0,91083.0,0.04423]
[1763457035651,0.04302,91084.0,91083.0,0.04423]
[1763457036148,0.05961844,91086.0,91085.0,0.04423]
[1763457036149,0.00027447,91086.0,91085.0,0.04423]
[1763457036454,0.02169447,91086.0,91085.0,0.07257457]
[1763457036747,0.05325447,91086.0,91085.0,0.04423]
[1763457037253,0.04329447,91086.0,91085.0,0.04423]
[1763457038950,0.04329447,91086.0,91085.0,0.03323]
[1763457044149,0.05592447,91086.0,91085.0,0.03323]
[1763457049053,0.05592447,91086.0,91085.0,0.03283]
[1763457049459,0.04329447,91086.0,91085.0,0.03283]
[1763457053458,0.04329447,91086.0,91085.0,0.06151179]
[1763457055868,0.10265603,91086.0,91085.0,0.03283]
[1763457058266,0.04385,91077.0,91076.0,0.04513471]
[1763457058465,0.04385,91077.0,91076.0,0.0738222]
[1763457059167,0.02142,91077.0,91076.0,0.0738222]
[1763457059470,0.04385,91077.0,91076.0,0.0738222]
[1763457060864,0.04385,91077.0,91076.0,0.04513471]
[1763457060865,0.08342999,91077.0,91076.0,0.04513471]
[1763457061364,0.03957999,91077.0,91076.0,0.04513471]
[1763457061564,0.0211,91077.0,91076.0,0.04513471]
[1763457061764,0.08310999,91079.0,91078.0,0.0443]
[1763457062369,0.08311149,91079.0,91078.0,0.0443]
[1763457062667,0.04353,91079.0,91078.0,0.0443]
[1763457062970,0.08311149,91079.0,91078.0,0.0443]
[1763457063472,0.04353,91079.0,91078.0,0.0443]
[1763457067775,0.04353,91079.0,91078.0,0.07276832]
[1763457068673,0.04353,91079.0,91078.0,0.07276269]
[1763457069560,0.00219803,91080.0,91079.0,0.0443]
[1763457069765,0.04572803,91080.0,91079.0,0.07276269]
[1763457071178,0.02329803,91080.0,91079.0,0.07276269]
[1763457071475,0.04572803,91080.0,91079.0,0.07276269]
[1763457072270,0.00219803,91080.0,91079.0,0.07276269]
[1763457072476,0.02329803,91080.0,91079.0,0.07276269]
[1763457072683,0.04572803,91080.0,91079.0,0.07276269]
[1763457075170,0.00027447,91086.0,91079.0,0.07276269]
[1763457075377,0.00027447,91086.0,91076.0,0.00016471]
[1763457075378,0.00027447,91086.0,91085.0,0.0443]
[1763457075677,0.00027447,91086.0,91085.0,0.07276269]
[1763457078376,0.00027447,91086.0,91085.0,0.10229016]
[1763457078777,0.00027447,91086.0,91085.0,0.07276269]
[1763457079279,0.00027447,91086.0,91085.0,0.10228894]
[1763457080780,0.00027447,91086.0,91085.0,0.07276269]
[1763457081275,0.02707108,91102.0,91101.0,0.04582]
[1763457081469,0.023,91118.0,91117.0,0.04582]
[1763457082275,0.0455,91118.0,91117.0,0.04582]
[1763457082482,0.00219803,91120.0,91119.0,0.04582]
[1763457082871,0.00219803,91120.0,91116.0,0.01275]
[1763457082872,0.00016471,91127.0,91125.0,0.05857]
[1763457083270,0.05819,91144.0,91143.0,0.04582]
[1763457084676,0.07879455,91149.0,91147.0,0.04582]
[1763457084877,0.07879455,91149.0,91148.0,0.04582]
[1763457084878,0.0455,91149.0,91148.0,0.04582]
[1763457087186,0.0465,91149.0,91148.0,0.04582]
[1763457089676,0.04406,91148.0,91147.0,0.03503]
[1763457089885,0.04406,91135.0,91134.0,0.02137462]
[1763457090195,0.04406,91135.0,91134.0,0.04399462]
[1763457090589,0.04406,91135.0,91134.0,0.00016462]
[1763457091992,0.04406,91135.0,91134.0,0.02137462]
[1763457092291,0.04406,91135.0,91134.0,0.04399462]
[1763457094888,0.04406,91135.0,91134.0,0.02137462]
[1763457095897,0.16738382,91172.0,91134.0,0.02137462]
[1763457095898,0.07879455,91178.0,91152.0,0.05701]
[1763457096082,0.02311423,91166.0,91165.0,0.04383]
[1763457096992,0.04433423,91166.0,91165.0,0.04383]
[1763457097495,0.04533423,91166.0,91165.0,0.04383]
[1763457097695,0.00127423,91166.0,91165.0,0.04383]
[1763457097897,0.02411423,91166.0,91165.0,0.04383]
[1763457098393,0.05801,91188.0,91187.0,0.04383]
[1763457098593,0.04406,91188.0,91187.0,0.04383]
[1763457098793,0.00219803,91190.0,91189.0,0.04383]
[1763457098987,0.01395,91208.0,91189.0,0.04383]
[1763457099189,0.04625803,91200.0,91199.0,0.04383]
[1763457100590,0.04725803,91200.0,91199.0,0.04383]
[1763457101397,0.00319803,91200.0,91199.0,0.04383]
[1763457101702,0.001,91200.0,91199.0,0.04383]
[1763457102189,0.28878897,91240.0,91223.0,0.04383]
[1763457102190,0.05801,91224.0,91223.0,0.04383]
[1763457102390,0.04406,91224.0,91223.0,0.04383]
[1763457102791,0.02284,91224.0,91223.0,0.04383]
[1763457103293,0.05801,91232.0,91231.0,0.04383]
[1763457103997,0.04406,91232.0,91231.0,0.04383]
[1763457106003,0.05801,91240.0,91239.0,0.04383]
[1763457106192,0.04625803,91240.0,91239.0,0.04383]
[1763457106495,0.02284,91240.0,91239.0,0.04383]
[1763457106996,0.02503803,91240.0,91239.0,0.04383]
[1763457107302,0.04625803,91240.0,91239.0,0.04383]
[1763457108189,0.04406,91225.0,91224.0,0.04383]
[1763457108393,0.04406,91225.0,91224.0,0.02121]
[1763457108903,0.04016,91225.0,91224.0,0.04383]
[1763457110403,0.01395,91269.0,91245.0,0.04383]
[1763457110603,0.01084329,91265.0,91245.0,0.04383]
[1763457110898,0.06020803,91250.0,91249.0,0.04383]
[1763457111300,0.01395,91260.0,91250.0,0.01318]
[1763457111500,0.06020803,91260.0,91259.0,0.02121]
[1763457111701,0.02284,91251.0,91250.0,0.33184897]
[1763457112008,0.02284,91251.0,91250.0,0.05701]
[1763457112896,0.04406,91251.0,91250.0,0.04383]
[1763457113099,0.01395,91260.0,91236.0,0.04399443]
[1763457113100,0.04406,91237.0,91236.0,0.04399443]
[1763457113908,0.05801,91250.0,91249.0,0.04383]
[1763457114109,0.06020803,91250.0,91249.0,0.04383]
[1763457115712,0.00219803,91250.0,91249.0,0.04383]
[1763457116006,0.04406,91237.0,91236.0,0.02137443]
[1763457116804,0.04406,91237.0,91236.0,0.04399443]
[1763457117505,0.01614803,91240.0,91239.0,0.04365]
[1763457117506,0.00219803,91240.0,91239.0,0.04365]
[1763457117709,0.06066803,91240.0,91239.0,0.04365]
[1763457118104,0.06066803,91240.0,91239.0,0.0212]
[1763457118713,0.06066803,91240.0,91236.0,0.00016443]
[1763457118714,0.04511,91237.0,91236.0,0.00016443]
[1763457118912,0.01555803,91240.0,91210.0,0.04365]
[1763457118913,0.04511,91211.0,91210.0,0.04365]
[1763457119808,0.01336,91220.0,91201.0,0.04381443]
[1763457119809,0.02292,91202.0,91201.0,0.04381443]
[1763457120004,0.0452738,91220.0,91219.0,0.04365]
[1763457120210,0.00236183,91220.0,91219.0,0.04365]
[1763457120409,0.02528183,91220.0,91219.0,0.04365]
[1763457121100,0.0001638,91220.0,91219.0,0.04365]
[1763457122110,0.04511,91250.0,91249.0,0.04365]
[1763457122412,0.04350803,91250.0,91249.0,0.04365]
[1763457124308,0.02131803,91250.0,91249.0,0.04365]
[1763457124514,0.00219803,91250.0,91249.0,0.04365]
[1763457124719,0.00219803,91250.0,91240.0,0.2878334]
[1763457124720,0.05847,91260.0,91259.0,0.04365]
[1763457124905,0.01336,91280.0,91250.0,0.01283]
[1763457124906,0.01336,91280.0,91260.0,0.01283]
[1763457125100,0.01555803,91280.0,91261.0,0.00016443]
[1763457126112,0.06066803,91280.0,91261.0,0.00016443]
[1763457127008,0.04730803,91280.0,91279.0,0.04365]
[1763457127519,0.04511,91271.0,91270.0,0.04365]
[1763457127710,0.04511,91262.0,91261.0,0.04381443]
[1763457127907,0.04511,91262.0,91261.0,0.00016443]
[1763457129211,0.03411,91262.0,91261.0,0.00016443]
[1763457132115,0.04511,91243.0,91242.0,0.02949399]
[1763457132319,0.04511,91243.0,91242.0,0.03023349]
[1763457132620,0.04511,91243.0,91242.0,0.05143349]
[1763457132918,0.04511,91243.0,91242.0,0.07388349]
[1763457133113,0.0001641,91252.0,91242.0,0.07388349]
[1763457133321,0.04511,91243.0,91242.0,0.04365]
[1763457133620,0.04511,91243.0,91242.0,0.07390574]
[1763457133813,0.04511,91243.0,91242.0,0.04365]
[1763457134016,0.04511,91243.0,91240.0,0.01283]
[1763457134017,0.04511,91269.0,91268.0,0.04365]
[1763457134212,0.01336,91280.0,91260.0,0.0212]
[1763457134213,0.04511,91261.0,91260.0,0.0212]
[1763457134407,0.00219803,91260.0,91250.0,0.01283]
[1763457134719,0.02292,91251.0,91250.0,0.05648]
[1763457135111,0.04511,91251.0,91250.0,0.05648]
[1763457136209,0.04511,91251.0,91250.0,0.04365]
[1763457136423,0.04511,91242.0,91241.0,0.04381433]
[1763457137412,0.02292,91242.0,91241.0,0.04381433]
[1763457137916,0.04511,91242.0,91241.0,0.04481433]
[1763457138318,0.28819897,91270.0,91241.0,0.04481433]
[1763457138319,0.07879455,91268.0,91267.0,0.04365]
[1763457138523,0.04511,91268.0,91267.0,0.0212]
[1763457139207,0.04511,91259.0,91258.0,0.02136433]
[1763457139407,0.04511,91259.0,91258.0,0.04381433]
[1763457139606,0.00219803,91260.0,91259.0,0.04365]
[1763457141113,0.04657803,91260.0,91259.0,0.04365]
[1763457143729,0.00219803,91260.0,91259.0,0.04365]
[1763457143920,0.00219803,91260.0,91259.0,0.07369575]
[1763457144224,0.00219803,91260.0,91259.0,0.04365]
[1763457145316,0.02536803,91260.0,91259.0,0.04365]
[1763457145628,0.04682803,91260.0,91259.0,0.04365]
[1763457146927,0.00829,91280.0,91260.0,0.01292]
[1763457147113,0.0441,91261.0,91260.0,0.05829]
[1763457147517,0.0441,91269.0,91268.0,0.04537]
[1763457149422,0.0441,91261.0,91260.0,0.05829]
[1763457149622,0.0441,91259.0,91258.0,0.00016433]
[1763457153721,0.0451,91259.0,91258.0,0.00016433]
[1763457155814,0.0441,91249.0,91248.0,0.03771]
[1763457156220,0.0441,91249.0,91231.0,0.0292854]
[1763457156420,0.04629803,91240.0,91239.0,0.04537]
[1763457156624,0.04629803,91240.0,91239.0,0.07464121]
[1763457157529,0.04629803,91240.0,91239.0,0.04537]
[1763457157827,0.04629803,91240.0,91239.0,0.04637]
[1763457159526,0.04260039,91240.0,91239.0,0.04637]
[1763457162429,0.05567039,91240.0,91239.0,0.001]
[1763457162820,0.0441,91231.0,91230.0,0.02930433]
[1763457163132,0.00073267,91230.0,91226.0,0.00010293]
[1763457163336,0.00073267,91230.0,91226.0,2.93e-06]
[1763457163529,0.5096,91229.0,91226.0,2.93e-06]
[1763457163831,0.16869362,91228.0,91226.0,2.93e-06]
[1763457164031,0.05909362,91228.0,91218.0,4.42e-06]
[1763457164221,0.00073267,91220.0,91218.0,4.42e-06]
[1763457164623,0.1096,91219.0,91218.0,4.42e-06]
[1763457165133,0.00010293,91219.0,91218.0,0.00100442]
[1763457166431,0.00110293,91219.0,91218.0,0.00100442]
[1763457166630,0.00110293,91219.0,91218.0,4.42e-06]
[1763457166829,0.00110293,91219.0,91218.0,0.00100442]
[1763457167240,0.00110293,91219.0,91218.0,4.42e-06]
[1763457167431,0.00110293,91219.0,91218.0,0.00100442]
[1763457167631,0.00110293,91219.0,91218.0,4.42e-06]
[1763457168126,0.00110293,91219.0,91218.0,0.00100442]
[1763457168332,0.00110293,91219.0,91218.0,0.04637442]
[1763457168523,2.93e-06,91219.0,91218.0,0.04637442]
[1763457168724,0.00016442,91228.0,91227.0,0.04537]
[1763457168929,0.00016442,91228.0,91227.0,0.04637]
[1763457169836,0.00116442,91228.0,91227.0,0.04637]
[1763457170636,0.00016442,91228.0,91227.0,0.04637]
[1763457177637,0.00016442,91228.0,91227.0,0.02289]
[1763457177830,0.00016442,91228.0,91224.0,0.01359]
[1763457178031,0.00016442,91228.0,91224.0,0.01459]
[1763457178335,0.00016442,91228.0,91224.0,0.01359]
[1763457178538,0.00016442,91228.0,91224.0,0.05811]
[1763457179741,0.00216442,91228.0,91224.0,0.05711]
[1763457179940,0.00216442,91228.0,91224.0,0.05811]
[1763457181035,0.00216442,91228.0,91227.0,0.04352]
[1763457181438,0.00216442,91228.0,91227.0,0.04452]
[1763457181942,0.00116442,91228.0,91227.0,0.04452]
[1763457182143,0.00216442,91228.0,91227.0,0.04452]
[1763457182333,0.00216442,91228.0,91227.0,0.04352]
[1763457182533,0.00216442,91228.0,91227.0,0.04452]
[1763457182740,0.00116442,91228.0,91227.0,0.04352]
[1763457182935,0.00216442,91228.0,91227.0,0.04352]
[1763457183136,0.00216442,91228.0,91227.0,0.04452]
[1763457183344,0.00116442,91228.0,91227.0,0.04352]
[1763457183536,0.00216442,91228.0,91227.0,0.04352]
[1763457183737,0.00216442,91228.0,91227.0,0.04452]
[1763457183937,0.00116442,91228.0,91227.0,0.04452]
[1763457184145,0.00216442,91228.0,91227.0,0.04452]
[1763457184337,0.00216442,91228.0,91227.0,0.04352]
[1763457184734,0.00216442,91228.0,91227.0,0.04452]
[1763457185633,0.00216442,91228.0,91227.0,0.04352]
[1763457185838,0.00216442,91228.0,91227.0,0.04452]
[1763457186244,0.00116442,91228.0,91227.0,0.04452]
[1763457186444,0.00216442,91228.0,91227.0,0.04452]
[1763457186748,0.00216442,91228.0,91227.0,0.04352]
[1763457187128,0.00216442,91228.0,91227.0,0.04452]
[1763457187531,0.83186687,91228.0,91218.0,4.42e-06]
[1763457187749,0.1096,91227.0,91208.0,0.02629442]
[1763457188040,0.21828795,91218.0,91192.0,0.01325]
[1763457188244,0.00073267,91200.0,91184.0,0.01325]
[1763457188538,0.21828795,91194.0,91184.0,0.01325]
[1763457188737,0.21828795,91194.0,91190.0,0.00219803]
[1763457188937,0.00016442,91198.0,91190.0,0.00219803]
[1763457190136,0.00016442,91198.0,91197.0,0.05677]
[1763457190137,0.00116442,91198.0,91197.0,0.05677]
[1763457191242,0.00216442,91198.0,91197.0,0.05677]
[1763457192137,0.00116442,91198.0,91197.0,0.05677]
[1763457192336,0.00216442,91198.0,91197.0,0.05677]
[1763457192539,0.00116442,91198.0,91197.0,0.08605522]
[1763457192730,4.42e-06,91198.0,91197.0,0.08605522]
[1763457193636,4.42e-06,91198.0,91197.0,0.05677]
[1763457193837,4.42e-06,91198.0,91197.0,0.08606147]
[1763457194245,0.00073267,91200.0,91197.0,0.08606147]
[1763457194446,0.00073267,91200.0,91199.0,0.04352]
[1763457194639,0.00073267,91200.0,91199.0,0.07281147]
[1763457195042,0.00073267,91200.0,91197.0,0.01325]
[1763457196345,0.00073267,91200.0,91197.0,0.03561]
[1763457196642,0.00073267,91200.0,91197.0,0.05677]
[1763457197547,0.00173267,91200.0,91197.0,0.05677]
[1763457197851,0.00016442,91207.0,91206.0,0.04352]
[1763457198851,0.00016442,91207.0,91197.0,0.01325]
[1763457199046,0.00116442,91207.0,91200.0,0.04571803]
[1763457199246,0.00216442,91207.0,91200.0,0.04571803]
[1763457199653,0.00216442,91207.0,91206.0,0.02236]
[1763457200047,0.00216442,91207.0,91200.0,0.04781803]
[1763457201342,0.00216442,91207.0,91197.0,0.01325]
[1763457201753,0.27307542,91206.0,91180.0,0.00016442]
[1763457201948,0.00073267,91190.0,91180.0,0.00236245]
[1763457202247,0.16343702,91189.0,91180.0,0.00016442]
[1763457202649,0.10964001,91188.0,91180.0,0.00016442]
[1763457202946,0.16343702,91187.0,91180.0,0.00016442]
[1763457203544,0.16484926,91189.0,91180.0,0.00016442]
[1763457203740,0.16484926,91186.0,91180.0,0.03619442]
[1763457203945,0.16484926,91186.0,91180.0,0.03839245]
[1763457204146,0.16484926,91188.0,91180.0,0.03839245]
[1763457204350,0.16559272,91185.0,91180.0,0.03839245]
[1763457204552,0.16659272,91187.0,91180.0,0.03839245]
[1763457204754,0.16559272,91186.0,91180.0,0.06165245]
[1763457204947,0.16559272,91184.0,91180.0,0.06165245]
[1763457205151,0.001,91186.0,91180.0,0.06165245]
[1763457205345,0.001,91186.0,91182.0,0.02329]
[1763457205346,0.16542666,91183.0,91182.0,0.02329]
[1763457205654,0.001,91185.0,91182.0,0.02329]
[1763457205854,0.26632,91183.0,91182.0,0.01949]
[1763457206053,0.43174666,91183.0,91182.0,0.01949]
[1763457206253,0.26632,91183.0,91182.0,0.01949]
[1763457206454,0.43074621,91183.0,91182.0,0.01949]
[1763457207545,0.43174621,91183.0,91182.0,0.01949]
[1763457208054,0.43274621,91183.0,91182.0,0.01949]
[1763457208947,0.43274621,91183.0,91182.0,0.04275]
[1763457209347,0.43274621,91183.0,91180.0,0.01510245]
[1763457209643,0.43274621,91183.0,91180.0,0.01290442]
[1763457209851,0.26624,91182.0,91180.0,0.01290442]
[1763457210252,0.16353523,91181.0,91180.0,0.03408442]
[1763457210645,0.16353523,91181.0,91180.0,0.05671442]
[1763457211150,0.17473876,91181.0,91180.0,0.05891245]
[1763457211848,0.07879455,91206.0,91181.0,0.04381]
[1763457212049,0.01071885,91208.0,91206.0,0.05651]
[1763457212247,0.00073267,91210.0,91206.0,0.05651]
[1763457213653,0.00116442,91207.0,91206.0,0.05651]
[1763457214045,0.00216442,91207.0,91206.0,0.05651]
[1763457214648,0.00116442,91207.0,91206.0,0.05651]
[1763457215849,0.00016442,91207.0,91206.0,0.05651]
[1763457216751,0.00116442,91207.0,91206.0,0.05651]
[1763457217152,0.00216442,91207.0,91206.0,0.05651]
[1763457217751,0.00116442,91207.0,91206.0,0.05651]
[1763457218458,0.00216442,91207.0,91206.0,0.05651]
[1763457218661,0.00116442,91207.0,91206.0,0.05651]
[1763457219356,0.00116442,91207.0,91206.0,0.0127]
[1763457219551,0.00116442,91207.0,91197.0,0.05651]
[1763457220258,0.00216442,91207.0,91197.0,0.05651]
[1763457220860,0.00116442,91207.0,91197.0,0.05651]
[1763457221261,0.00116442,91207.0,91197.0,0.05271]
[1763457221262,0.16392145,91206.0,91197.0,0.05271]
[1763457221460,0.16392145,91206.0,91200.0,0.02337803]
[1763457221655,0.16392145,91206.0,91200.0,0.04600803]
[1763457222449,0.16392145,91206.0,91205.0,0.04381]
[1763457222651,0.43008145,91206.0,91205.0,0.04381]
[1763457222853,0.00016442,91207.0,91206.0,0.05651]
[1763457222854,0.26636442,91207.0,91206.0,0.05651]
[1763457223055,0.00016442,91207.0,91206.0,0.05651]
[1763457224864,0.00116442,91207.0,91206.0,0.05651]
[1763457225357,0.00216442,91207.0,91206.0,0.05651]
[1763457226554,0.00116442,91207.0,91206.0,0.05651]
[1763457226762,0.00016442,91207.0,91206.0,0.05651]
[1763457230470,0.00116442,91207.0,91206.0,0.05651]
[1763457231158,0.00016442,91207.0,91206.0,0.05651]
[1763457231358,0.05922162,91207.0,91206.0,0.05651]
[1763457232365,0.00016442,91207.0,91206.0,0.05651]
[1763457236561,0.07879455,91225.0,91206.0,0.05651]
[1763457236562,0.0590572,91231.0,91227.0,0.04381]
[1763457236768,0.00999999,91260.0,91231.0,0.04381]
[1763457236769,0.0590572,91232.0,91231.0,0.04381]
[1763457237260,0.22295312,91232.0,91231.0,0.04381]
[1763457237464,0.23403333,91232.0,91231.0,0.04381]
[1763457238267,0.17597613,91232.0,91231.0,0.04381]
[1763457238661,0.23606107,91232.0,91231.0,0.04381]
[1763457239571,0.17697613,91232.0,91231.0,0.04381]
[1763457239763,0.17697613,91232.0,91231.0,0.02118]
[1763457239962,0.17697613,91232.0,91224.0,0.05604]
[1763457240170,0.17597613,91232.0,91224.0,0.05604]
[1763457240468,0.17697613,91232.0,91224.0,0.05604]
[1763457240863,0.17697613,91232.0,91231.0,0.04334]
[1763457241065,0.17697613,91232.0,91231.0,0.02179]
[1763457241259,0.25577068,91232.0,91222.0,0.00016442]
[1763457241461,0.25577068,91232.0,91193.0,0.03933203]
[1763457241462,0.07879455,91228.0,91206.0,0.05604]
[1763457241662,0.33421754,91216.0,91206.0,0.05604]
[1763457241865,0.05915498,91208.0,91206.0,0.05604]
[1763457242065,0.05915498,91208.0,91207.0,0.04334]
[1763457242273,0.26596,91215.0,91210.0,0.04553803]
[1763457242770,0.34475455,91215.0,91210.0,0.04553803]
[1763457242973,0.07879455,91215.0,91214.0,0.04334]
[1763457243173,0.34475455,91215.0,91214.0,0.04334]
[1763457243371,0.26596,91215.0,91214.0,0.04334]
[1763457243874,0.26696,91215.0,91206.0,0.05604]
[1763457244064,0.34575455,91215.0,91206.0,0.05604]
[1763457244465,0.05917133,91207.0,91206.0,0.05604]
[1763457244672,0.26696,91215.0,91206.0,0.05604]
[1763457244870,0.34575455,91215.0,91206.0,0.03449]
[1763457245173,0.07879455,91211.0,91206.0,0.0127]
[1763457245376,0.16427422,91214.0,91203.0,0.00016442]
[1763457245377,0.07879455,91210.0,91203.0,0.00016442]
[1763457245572,0.07879455,91209.0,91203.0,0.02195442]
[1763457245761,0.07879455,91207.0,91203.0,0.02195442]
[1763457246161,0.07879455,91207.0,91206.0,0.01261]
[1763457246871,0.07879455,91207.0,91206.0,0.0344]
[1763457247082,0.08587784,91207.0,91206.0,0.05595]
[1763457247380,0.001,91207.0,91206.0,0.05595]
[1763457248075,0.26796,91207.0,91206.0,0.05595]
[1763457248561,0.002,91207.0,91206.0,0.05595]
[1763457248763,0.01079455,91211.0,91210.0,0.04553803]
[1763457249068,0.13750312,91229.0,91217.0,0.04334]
[1763457249069,0.05915711,91218.0,91217.0,0.04334]
[1763457249269,0.05915711,91219.0,91217.0,0.04334]
[1763457249468,0.26596,91226.0,91218.0,0.04334]
[1763457249674,0.26596,91226.0,91221.0,0.04334]
[1763457249675,0.02347442,91222.0,91221.0,0.04334]
[1763457250673,0.02447442,91222.0,91221.0,0.04334]
[1763457250867,0.04716442,91222.0,91221.0,0.04334]
[1763457251866,0.04616442,91222.0,91221.0,0.04334]
[1763457253379,0.04716442,91222.0,91221.0,0.04334]
[1763457257576,0.31300442,91222.0,91221.0,0.04334]
[1763457259282,0.31200442,91222.0,91221.0,0.04334]
[1763457260282,0.31300442,91222.0,91221.0,0.04334]
[1763457260875,0.31200442,91222.0,91221.0,0.04334]
[1763457262781,0.31300442,91222.0,91221.0,0.04334]
[1763457263681,0.06356603,91240.0,91239.0,0.04278]
[1763457263883,0.07885761,91248.0,91245.0,0.04278]
[1763457264071,0.07885761,91250.0,91245.0,0.04278]
[1763457264271,0.05908478,91248.0,91245.0,0.04278]
[1763457264476,0.05908478,91249.0,91245.0,0.04278]
[1763457264981,0.0698551,91254.0,91245.0,0.04278]
[1763457265185,0.01077032,91254.0,91245.0,0.04278]
[1763457270880,0.00016442,91255.0,91245.0,0.04278]
[1763457272189,0.01108681,91255.0,91245.0,0.04278]
[1763457274588,0.01108681,91255.0,91245.0,0.0498]
[1763457275192,0.01108681,91255.0,91254.0,0.04404]
[1763457275193,0.00016442,91255.0,91254.0,0.04404]
[1763457277085,0.02131442,91255.0,91254.0,0.04404]
[1763457279090,0.00016442,91255.0,91254.0,0.04404]
[1763457285090,0.05515,91280.0,91279.0,0.04404]
[1763457285295,0.01276,91272.0,91237.0,0.02935612]
[1763457285491,0.01276,91272.0,91236.0,0.01263]
[1763457285492,0.04234,91261.0,91260.0,0.00219803]
[1763457287595,0.04234,91261.0,91260.0,0.04623803]
[1763457287900,0.04334,91261.0,91260.0,0.04623803]
[1763457288898,0.04334,91261.0,91251.0,0.00016433]
[1763457288899,0.0551,91252.0,91251.0,0.00016433]
[1763457293601,0.0561,91252.0,91251.0,0.00016433]
[1763457294103,0.0523,91252.0,91226.0,0.02928682]
[1763457294308,0.04234,91241.0,91240.0,0.04623803]
[1763457294806,0.0561,91252.0,91251.0,0.04404]